Cogmind - Beta 16 @@@ ROGUE MODE // 2025.11.24 @ 12:52:32 Player: omewwes Result: Destroyed by 4G-RKT(j) with Overtuned Pulse Rifle Performance ------------- Evolutions (0) 0 Regions Visited (4) 800 Robots Destroyed (16) 80 Value Destroyed (382) 382 Prototype IDs (10) 200 Alien Tech Used (0) 0 Bonus (800) 800 TOTAL SCORE: 2262 Bonus ------- Registered with UFD 300 Met Optimus in HQ 500 Cogmind --------- Core Integrity 0/250 Matter 154/300 Energy 533/2600 System Corruption 1% Temperature Cool (12) Movement Treading (240) Ox1 Location -9/Scraptown Parts ------- > --- POWER (1) -------- MA-1KR's Cyclogen > --- PROPULSION (2) --- Medium Treads Medium Treads > --- UTILITY (2) ------ Scrap Suit > --- WEAPON (2) ------- Companion Sword DM-GVY's Chainsaw > --- INVENTORY (5) ---- Medium Treads Experimental Terrain Scan Processor Rocket Launcher Plasma Flamer Peak State ------------ > --- POWER ------------ MA-1KR's Cyclogen > --- PROPULSION ------- Medium Treads Assembled Alloy Leg > --- UTILITY ---------- Scrap Suit > --- WEAPON ----------- Companion Sword DM-GVY's Chainsaw > --- INVENTORY -------- Medium Treads Medium Treads Experimental Terrain Scan Processor Rocket Launcher Plasma Flamer [Rating: 46] Favorites ----------- Power Ion Engine Engine Ion Engine Reactor MA-1KR's Cyclogen Propulsion Light Treads Treads Light Treads Leg Assembled Alloy Leg Wheel Armored Huge Wheel Utility Small Storage Unit Device Improved Terrain Scanner Storage Small Storage Unit Protection Scrap Shield Weapon Heavy Assault Rifle Ballistic Gun Heavy Assault Rifle Launcher Grenade Launcher Special Weapon Plasma Flamer Slashing Weapon Companion Sword Build | -11 -10 -10 -10 -9 ------- Run | Yrd Mat Min Sub Scr Slots Evolved . | . . . . . Power . | . . . . . Propulsion . | . . . . . Utility . | . . . . . Weapon . | . . . . . Parts Attached 38 | 7 5 4 6 16 Power 6 | 1 1 1 1 2 Engine 5 | 1 1 1 1 1 Core . | . . . . . Reactor 1 | . . . . 1 Propulsion 9 | 2 . 1 1 5 Treads 7 | 2 . 1 1 3 Leg 1 | . . . . 1 Wheel 1 | . . . . 1 Hover . | . . . . . Flight . | . . . . . Utility 10 | 2 . . 2 6 Device 6 | 1 . . . 5 Storage 1 | 1 . . . . Processor . | . . . . . Hackware . | . . . . . Protection 3 | . . . 2 1 Artifact . | . . . . . Weapon 13 | 2 4 2 2 3 Energy Gun . | . . . . . Energy Cannon . | . . . . . Ballistic Gun 9 | 2 4 2 1 . Ballistic Cannon . | . . . . . Launcher 1 | . . . 1 . Special Weapon 1 | . . . . 1 Impact Weapon . | . . . . . Slashing Weapon 2 | . . . . 2 Piercing Weapon . | . . . . . Special Melee Weapon . | . . . . . Unidentified Prototypes 3 | . . . . 3 Parts Lost . | . . . . . Power . | . . . . . Propulsion . | . . . . . Utility . | . . . . . Weapon . | . . . . . Highest Loss Streak . | . . . . . To Critical Strikes . | . . . . . Average Backups 5 | . 5 7 6 5 Power . | . . . . . Propulsion . | . . 1 . . Utility 2 | . . 2 2 2 Weapon 2 | . 3 4 3 2 Tool/Special . | . . . . . Unused Backups 9 | . 3 . 2 4 Power 1 | . 1 . . . Propulsion . | . . . . . Utility 4 | . . . 1 3 Weapon 4 | . 2 . 1 1 Tool/Special . | . . . . . Average Slot Usage (%) 93 | . 100 100 94 90 Engine 13 | . 14 14 14 13 Treads 27 | . 28 28 28 27 Device 8 | . 14 14 7 7 Storage 6 | . 14 14 8 4 Protection 6 | . . . 6 8 Ballistic Gun 20 | . 28 28 27 17 Special Weapon 3 | . . . . 5 Slashing Weapon 3 | . . . . 5 Peak Build Rating 46 | 9 13 13 13 46 Average Rating 16 | 5 12 13 12 19 On Entrance 9 | . 9 13 13 13 Avg Prop Armor Cover (%) 11 | . . . . 11 Naked Turns . | . . . . . Heaviest Build 32 | 13 19 19 30 32 Greatest Support 56 | 40 40 40 40 56 Greatest Overweight (x) 1 | . . . . 1 Average Overweight (x) . | . . . . . Largest Inventory Capacity 8 | 8 8 8 8 8 Average Capacity 6 | 7 8 8 6 5 Most Carried 8 | . 8 8 8 8 Average Carried 5 | . 5 7 6 5 Final Capacity 8 | 8 8 8 5 5 Final Carried 7 | . 7 7 5 4 Scrap Suit Usage (%) 5 | . . . . 7 Class Distribution -------------------- 72% | Mutant 16% | Subdweller-Mutant 7% | Derelict-Mutant 3% | Scrapper Dominant Class ---------------- Mutant | -10/Materials Mutant | -10/Mines Mutant | -10/Subcaves Mutant | -9/Scraptown Resources | -11 -10 -10 -10 -9 ----------- Run | Yrd Mat Min Sub Scr Matter Collected 953 | 214 51 313 126 249 Remotely . | . . . . . Salvage Created 573 | 124 51 268 60 70 Parts 42 | 10 1 16 10 5 Haulers Intercepted . | . . . . . Recyclers Shooed 2 | . 1 1 . . Parts Field Recycled . | . . . . . Retrieved Matter . | . . . . . Parts Self-Destructed 13 | . . . 13 . Prevented . | . . . . . Parts Restored . | . . . . . Kills | -11 -10 -10 -10 -9 ------- Run | Yrd Mat Min Sub Scr Combat Hostiles Destroyed 9 | . . 4 4 1 Melee 1 | . . . . 1 Guns 6 | . . 4 2 . AOE 2 | . . . 2 . Classes Destroyed 8 | 2 . 2 3 1 Tunneler 2 | 2 . . . . Recycler 3 | 1 1 1 . . Turret 2 | . . . 2 . Swarmer 3 | . . . 3 . Grunt 2 | . . 2 . . Sentry 2 | . . 2 . . Subdweller 1 | . . . 1 . Scrapper 1 | . . . . 1 Best Kill Streak 3 | 3 1 2 3 1 Combat Bots Only 3 | . . 2 3 1 Max Kills in Single Turn 2 | 1 1 1 2 1 Gunslinging . | . . . . . Exploded 2 | . . . 2 . Melee 1 | . . . . 1 Uniques/NPCs Destroyed . | . . . . . Combat | -11 -10 -10 -10 -9 -------- Run | Yrd Mat Min Sub Scr Hostile Shots Fired 142 | . 23 24 67 28 Missed 41 | . 4 4 21 12 Hits 101 | . 19 20 46 16 Melee 1 | . . . . 1 Projectile 100 | . 19 20 46 15 Critical Strikes 1 | . . 1 . . Damage Taken 1037 | . 151 303 380 203 Core 259 | . 15 96 81 67 Absorbed by Shields . | . . . . . Redirected to Shielding 3 | . . . 3 . Core Remaining (%) 100 | 100 . . . . Volleys Fired 53 | 6 7 15 24 1 Largest 2 | 2 2 2 2 2 Hottest 130 | 40 46 46 53 130 Shots Fired 100 | 12 14 30 43 1 Gun 94 | 12 14 30 38 . Cannon . | . . . . . Launcher 5 | . . . 5 . Special 1 | . . . . 1 Kinetic 94 | 12 14 30 38 . Thermal 1 | . . . . 1 Explosive 5 | . . . 5 . Electromagnetic . | . . . . . Robot Hit Streak 22 | 10 8 15 22 . Robot Miss Streak 3 | 1 1 3 3 . Penetration Max . | . . . . . Secondary Targets 1 | . . 1 . . Max Gunslinging Chain 1 | . . 1 . . Shots Hit Robots 74 | 11 11 21 25 6 Core Hits 29 | 6 3 7 12 1 Critical Kills 1 | . . 1 . . Critical Parts Destroyed 1 | . . . 1 . Critical Strikes 2 | . . 1 1 . Destroy 2 | . . 1 1 . Melee Attacks 10 | . . . . 10 Impact . | . . . . . Slashing 10 | . . . . 10 Piercing . | . . . . . Sneak Attacks . | . . . . . Combat Hostiles . | . . . . . Follow-up Attacks 1 | . . . . 1 Damage Inflicted 1241 | 85 161 299 493 203 Guns 825 | 85 158 299 283 . Cannons . | . . . . . Explosions 210 | . . . 210 . Melee 203 | . . . . 203 Ramming 3 | . 3 . . . Kinetic 825 | 85 158 299 283 . Thermal . | . . . . . Explosive 210 | . . . 210 . Electromagnetic . | . . . . . Impact . | . . . . . Slashing 203 | . . . . 203 Piercing . | . . . . . Highest Corruption 1 | . . . . 1 Average Corruption 1 | . . . . 1 Corruption Purged . | . . . . . Corruption Blocked . | . . . . . Overload Shots . | . . . . . Overflow Damage 25 | . . . . 25 Projectiles . | . . . . . Explosions . | . . . . . Melee 25 | . . . . 25 Knockbacks . | . . . . . Impact . | . . . . . Kinetic . | . . . . . Secondary . | . . . . . Self-Inflicted Damage . | . . . . . Shots . | . . . . . Rammed 1 | . 1 . . . Targets Rammed 1 | . 1 . . . Kicked . | . . . . . Crushed . | . . . . . Highest Temperature 69 | . . 23 . 69 Average Temperature 15 | . . 7 . 37 Received Heat Transfer 315 | . . 117 120 78 Siege Activations . | . . . . . Martial Activations . | . . . . . Shielding Activations . | . . . . . Robots Disrupted . | . . . . . Combat Hostiles . | . . . . . Robots Corrupted . | . . . . . Combat Hostiles . | . . . . . Parts Fried . | . . . . . Impact Corruptions . | . . . . . Robots Melted . | . . . . . Combat Hostiles . | . . . . . Parts Melted . | . . . . . Heat Transferred . | . . . . . Parts Sabotaged . | . . . . . Parts Stolen . | . . . . . Parts Stripped . | . . . . . Power Chain Reactions . | . . . . . Alert | -11 -10 -10 -10 -9 ------- Run | Yrd Mat Min Sub Scr Maximum Alert Level . | . . . . . Low Security (%) 100 | 100 100 100 . . Level 1 . | . . . . . Level 2 . | . . . . . Level 3 . | . . . . . Level 4 . | . . . . . Level 5 . | . . . . . High Security . | . . . . . Max Security . | . . . . . Peak Influence 50 | 15 6 50 . . Initial . | . . . . . Average 5 | 2 . 7 . . Influence Increases 356 | 15 11 95 235 . Destroy 0b10 Robot/C 180 | . . 80 100 . Destroy 0b10 Robot/NC 25 | 15 5 5 . . Destroy Leader 10 | . . 10 . . Successful Hack 6 | . 6 . . . Lose Combat Pursuer 135 | . . . 135 . Influence Decreases 356 | 15 11 95 60 175 Entered New Map 175 | . . . . 175 Time Decay 181 | 15 11 95 60 . Squads Dispatched 1 | . 1 . . . Investigation . | . . . . . Extermination . | . . . . . Reinforcement 1 | . 1 . . . Assault . | . . . . . Garrison . | . . . . . Intercept . | . . . . . Searches Triggered . | . . . . . Construction Impeded . | . . . . . Haulers Reinforced . | . . . . . Active Scanning Responses . | . . . . . Cargo Convoy Interrupts . | . . . . . Stealth | -11 -10 -10 -10 -9 --------- Run | Yrd Mat Min Sub Scr Distress Signals 1 | . 1 . . . Communications Jammed . | . . . . . Distress Signals . | . . . . . Times Spotted 27 | . 6 4 9 8 Peak Tracking Total 5 | . 5 2 4 4 Tactical Retreats 2 | . . . 2 . Traps | -11 -10 -10 -10 -9 ------- Run | Yrd Mat Min Sub Scr Traps Triggered . | . . . . . Indirectly . | . . . . . Trap Hack Attempts . | . . . . . Triggered . | . . . . . Disarmed . | . . . . . Reprogrammed . | . . . . . Reused . | . . . . . Traps Extracted . | . . . . . Installed . | . . . . . Triggered . | . . . . . Machines | -11 -10 -10 -10 -9 ---------- Run | Yrd Mat Min Sub Scr Machines Disabled 4 | . 1 . 2 1 Max in Single Turn 1 | . 1 . 1 1 Machines Repaired . | . . . . . Machines Dismantled . | . . . . . Machines Sabotaged . | . . . . . Overloaded Fab Kills . | . . . . . Hacking | -11 -10 -10 -10 -9 --------- Run | Yrd Mat Min Sub Scr Machines Accessed 5 | . 1 . . 4 Terminals . | . . . . . Fabricators . | . . . . . Repair Stations . | . . . . . Recycling Units 1 | . 1 . . . Scanalyzers . | . . . . . Garrison Access . | . . . . . Total Hacks 15 | . 3 . . 12 Successful 15 | . 3 . . 12 Failed . | . . . . . Catastrophic . | . . . . . Database Lockouts . | . . . . . Manual 2 | . 2 . . . Terminals . | . . . . . Fabricators . | . . . . . Repair Stations . | . . . . . Recycling Units 3 | . 3 . . . Scanalyzers . | . . . . . Garrison Access . | . . . . . Terminal Hacks 12 | . . . . 12 Record 6 | . . . . 6 Robot Analysis 5 | . . . . 5 Open Door 1 | . . . . 1 Fabricator Hacks . | . . . . . Repair Station Hacks . | . . . . . Recycling Unit Hacks 1 | . 1 . . . Retrieve Matter 1 | . 1 . . . Scanalyzer . | . . . . . Garrison Access Hacks . | . . . . . Unauthorized Hacks 2 | . 2 . . . Terminals . | . . . . . Fabricators . | . . . . . Repair Stations . | . . . . . Recycling Units 2 | . 2 . . . Recyclers 1 | . 1 . . . Mask 1 | . 1 . . . Scanalyzers . | . . . . . Garrison Access . | . . . . . Data Cores Recovered . | . . . . . Used . | . . . . . Hacking Detections 1 | . 1 . . . Full Trace Events . | . . . . . Feedback Events . | . . . . . Feedback Blocked . | . . . . . Robot Schematics Acquired . | . . . . . Robots Built . | . . . . . Authchips . | . . . . . Time . | . . . . . Total Robot Build Rating . | . . . . . Part Schematics Acquired . | . . . . . Parts Built . | . . . . . Authchips . | . . . . . Time . | . . . . . Total Part Build Rating . | . . . . . Part Studies Acquired . | . . . . . Parts Repaired . | . . . . . Time . | . . . . . Parts Recycled . | . . . . . Recycled Matter . | . . . . . Retrieved Matter . | . . . . . Retrieved Components . | . . . . . Parts Scanalyzed . | . . . . . Part Schematics Acquired . | . . . . . Parts Damaged . | . . . . . Bothacking | -11 -10 -10 -10 -9 ------------ Run | Yrd Mat Min Sub Scr Used RIF Installer . | . . . . . Robots Hacked . | . . . . . Non-combat . | . . . . . Combat . | . . . . . Robot Hacks Applied . | . . . . . Relay Couplers Released . | . . . . . Fabnet Peak Effective % . | . . . . . Robots Rewired . | . . . . . Allies Hacked . | . . . . . Hacks Repelled . | . . . . . Allies | -11 -10 -10 -10 -9 -------- Run | Yrd Mat Min Sub Scr Total Allies . | . . . . . Largest Group . | . . . . . Highest-Rated Group . | . . . . . Highest-Rated Ally . | . . . . . Total Orders . | . . . . . Ally Attacks . | . . . . . Total Damage . | . . . . . Kills . | . . . . . Allies Corrupted . | . . . . . Allies Melted 4 | . . . . 4 Intel | -11 -10 -10 -10 -9 ------- Run | Yrd Mat Min Sub Scr Active Infowar (turns) 1593 | 54 280 612 185 462 Sensors 159 | . . . . 159 Terrain 1425 | 54 280 612 185 294 Traps 9 | . . . . 9 Robot Analysis Total 5 | . . . . 5 Derelict Logs Recovered 2 | . . 1 1 . Drone Launches . | . . . . . Drone Recoveries . | . . . . . Exploration | -11 -10 -10 -10 -9 ------------- Run | Yrd Mat Min Sub Scr Turns Passed 4085 | 135 280 612 373 2685 Spaces Moved 2298 | 78 148 307 160 1605 Core 13 | 13 . . . . Treads 2277 | 65 148 307 160 1597 Legs . | . . . . . Wheels 8 | . . . . 8 Hover . | . . . . . Flight . | . . . . . Fastest Speed 50 | 50 160 160 160 100 Average Speed 159 | 141 160 160 160 160 Slowest Speed 240 | 160 160 160 160 240 Overloaded Moves . | . . . . . Propulsion Burnouts . | . . . . . Robots Hopped . | . . . . . Potential Cave-ins 1 | . . . . 1 Cave-ins Triggered . | . . . . . Exploration Rate (%) 41 | 4 30 66 21 87 Regions Visited 4 Branch Regions 3 Pre-discovered Areas 1 | . . 1 . . Known Exits Taken . | . . . . . Unknown Exits Taken 4 | 1 1 1 1 . Scrap Searched 5 | . . 1 . 4 Spaces Dug . | . . . . . Terrain Destroyed 19 | . . . 19 . Melee . | . . . . . Projectile . | . . . . . AOE 19 | . . . 19 . Terrain Rammed . | . . . . . Walls Destroyed . | . . . . . Machines Disabled . | . . . . . Actions | -11 -10 -10 -10 -9 --------- Run | Yrd Mat Min Sub Scr Total 2606 | 90 180 400 233 1703 Wait 119 | . . 65 29 25 Move 2294 | 77 147 306 159 1605 Hop . | . . . . . Pick Up 25 | . 11 4 3 7 Fast Attach 23 | 7 2 . 1 13 Attach 4 | . . . . 4 Detach 11 | . 2 . . 9 Swap 23 | . 3 4 8 8 Drop 41 | . 7 6 6 22 Fire 53 | 6 7 15 24 1 Melee 9 | . . . . 9 Ram . | . . . . . Kick . | . . . . . Crush 1 | . 1 . . . Escape Stasis . | . . . . . Rewire . | . . . . . Trap . | . . . . . Miscellaneous 3 | . . . 3 . Route ------- -11/Scrapyard -10/Materials -10/Mines (discovered 3 exits: [*Mat x2] / [*Sub]) -10/Subcaves (discovered 2 exits: [*Rec] / *Scr) -9/Scraptown History --------- Turn | Location | Event 5 | -11/Scrapyard | Discovered new exit (range 16) 136 | -11/Scrapyard | Entered Materials 221 | -10/Materials | Discovered new exit (range 16) 301 | -10/Materials | Build established: Mutant 416 | -10/Materials | Entered Mines 483 | -10/Mines | Met a Derelict bent on vengeance 511 | -10/Mines | Discovered new exit (range 5) 593 | -10/Mines | A weapon hastily lodged in a ceiling crevice suddenly fell to the ground 630 | -10/Mines | Learned location of Zion (-6) 667 | -10/Mines | Found a hidden stash of uninstalled traps 753 | -10/Mines | Discovered new exit (range 4) 1012 | -10/Mines | Discovered new exit (range 5) 1028 | -10/Mines | Entered Subcaves 1029 | -10/Subcaves | Approached by a straggling Scientist 1205 | -10/Subcaves | Core integrity fell below 50% 1311 | -10/Subcaves | Ambushed by Subdweller buried in earth 1324 | -10/Subcaves | Discovered new exit (range 11) 1377 | -10/Subcaves | Scientist uncovered a shortcut to Scraptown 1401 | -10/Subcaves | Entered Scraptown 1533 | -9/Scraptown | Heard Great Nut preacher, LISTEN AND RECITE! 1551 | -9/Scraptown | Build established: Subdweller-Mutant 1593 | -9/Scraptown | Visited Comm Corps 1651 | -9/Scraptown | Visited TADAMA 1729 | -9/Scraptown | Visited The Evicted 1781 | -9/Scraptown | Visited Spacefarers 2193 | -9/Scraptown | Build established: Mutant 2370 | -9/Scraptown | Visited UFD Registry 2371 | -9/Scraptown | Registered with UFD as "Cargonade" 2472 | -9/Scraptown | Visited Junk Cannon Lab 2533 | -9/Scraptown | Delivered Scrap Shield to a Scientist 2653 | -9/Scraptown | Visited Supply Room 2821 | -9/Scraptown | Visited Analyses Database 2874 | -9/Scraptown | Visited Abandonware Association 2893 | -9/Scraptown | Learned abandonware demo "REPAIR.EXE" 2893 | -9/Scraptown | Learned abandonware demo "SHUTEYE.EXE" 2933 | -9/Scraptown | Visited Junk Repository 3003 | -9/Scraptown | Visited Infowarlord's Domain 3029 | -9/Scraptown | Found Exp. Terrain Scan Processor 3070 | -9/Scraptown | Visited Curators Association 3113 | -9/Scraptown | Visited Sword Containment 3130 | -9/Scraptown | Found Prototype Slashing Weapon 3130 | -9/Scraptown | Identified Companion Sword 3782 | -9/Scraptown | Met Optimus 3782 | -9/Scraptown | Accepted into 0bPrime 3874 | -9/Scraptown | Found Scrap Suit 3953 | -9/Scraptown | Civil war broke out across Scraptown 3968 | -9/Scraptown | Found Prototype Slashing Weapon 3968 | -9/Scraptown | Identified DM-GVY's Chainsaw 3981 | -9/Scraptown | Found MA-1KR's Cyclogen 4021 | -9/Scraptown | Lost 4 allies 4060 | -9/Scraptown | Core integrity fell below 20% 4086 | -9/Scraptown | Destroyed by 4G-RKT(j) with Overtuned Pulse Rifle Last Messages --------------- Companion Sword: "Avenge the fallen!" Companion Sword: "I hope you know what you're doing dragging us around at this speed." Companion Sword: "I'll remember this when it comes time to hit something." 04051_ I5-EW2(g) switches sides: "Uh oh, they might just win this." 04053_ I5-EW2(g) destroyed. 04057_ JJ-8XX(x): "0bPrime is tearing us apart, don't fall for it!" 04059_ Companion Sword follow-up attack on JJ-8XX(x). 04062_ JJ-8XX(x) destroyed. 04064_ BI-ZRZ(g) destroyed. 04068_ Acquired Mak. Spear. 04071_ Dropped Mak. Spear. 04080_ QK-EYD(j) destroyed. 04081_ 1I-IJ3(j) switches sides: "I don't know who to fight for!" 04082_ 1I-IJ3(j) cannibalizes Lgt. Deuterium Engine to repair Lgt. Deuterium Engine. 04083_ 1I-IJ3(j) suffers critical hit (Burn). 04083_ 1I-IJ3(j) overheating. 04084_ 1I-IJ3(j) critical meltdown. 04085_ Destroyed EM Pulse Gun. Map ----- +----------------------------------------------------+ | | | | | | | | | | | | | | | | | | | ?????????????????????????????????????????????????? | | ?????????????????????????????????????????????????? | | ?????????????????????????????????????????????????? | | ?????????????????????????????????????????????????? | | ?????????????????????????????????????????????????? | | ?????????????????????????????????????????????????? | | ?????????????????????????????????????????????????? | | ???????????????????????????#?????????????????????? | | ?????????????????????????????????????????????????? | | ?????????????????????????????????????????????????? | | ?????????????????????????????????????????????????? | | ???????????????????????????????????????#?????????? | | ??????????????????????#??????????????????????????? | | ????????##??###############???####???????????????? | | ????????"""?#"""##""|##"""#??## ##????????#?????? | | ????????"" ## "!##"" ##!/"####! ###### ##????? | | ???????#"" =!=!@%=j%= =*%! #????? | | ???????# !=*%p[==[! !![= #????? | | ???????######;################ ##########?????? | | ????????????# #??????????????## ##??????????????? | | ########??###"###?????????????# #???????????????? | | #??#"#*#"#?????????????# #???????????????? | | #### " " ####?#????????# #???????????????? | | #" " " "#???######## #???????????????? | | ##"" ""##???# ## #???????????????? | | ##]" #????# ## #???????????????? | | ##"" % ""##???# ## ###########?????? | | ## #####" "#???# ## #[!# ![# !#?????? | | #X ######"" ! "##???# ## #]=#!=!#|*#?????? | | #?#!" ! " #????# ## # # # #?????? | | ###" =% "##???# ## # [ #?????? | | ##" "#???# ## # #?????? | | # ########### ######???## ##### ## ########?????? | | # ########### ########### ##### ## #############? | | " """"""""""" """"""""""" """"" "" "## "#? | | "## ""#? | | "## """" "#? | | "## "### "#? | | "## "#X ""#? | | "### "#? | | """""""""""""""""""""""""""" "## """" "#? | +----------------------------------------------------+ Best States ------------- Heat Dissipation 25 Energy Generation 15 Energy Capacity 2600 Matter Stores 295 Matter Capacity 300 Sight Range 16 Robot Scan Range 15 Terrain Scan Range 16 Terrain Scan Density 10 Armor Coverage 800 Core Shielding 20 Evasion (%) 40 Recoil Reduction 2 Matter Filtering 30 Item Schematics ----------------- None Robot Schematics ------------------ None Fabricated ------------ Nothing Repaired ---------- Nothing Studied --------- None Alien Tech Used ----------------- None Achievements -------------- Myspace Nice Directions, Buddy Challenges ------------ None Game ------ Seed LightInertialArachnoskeleton Manual? 0 Play Time 00:26:35 Cumulative 115.7 hours Start 2025.11.23 @ 23:51:14 End 2025.11.24 @ 12:52:32 Sessions 3 Manual Loads 0 Difficulty Rogue Special Mode None Game No. 96 Rogue 96 Adventurer 0 Explorer 0 Win Type - Total 1 Types 1/0/0/0/0/0/0/0/0/0 Lore% 60 Gallery% 62 Achievement% 49 Wizard Run 0 Options --------- Layout 0 ASCII 0 Keyboard 1 Movement Vi Keybinds 0 Fullscreen 1 Font 18/SmallcapsGlow Map View 76x50 Zoom Use 0% Tactical HUD 1 Map Filters NONE Filters NONE Steam 1 RUN: 41ed8cc2-d702-4672-8d50-c5123f68b2fe